bitfinex-derivatives/quotes_ETHF0:USTF0_20241207
["timestamp","ask_amount","ask_price","bid_price","bid_amount"]
[1733542633596,0.17501,3993.6,3993.5,5.89343976]
[1733542634094,0.17501,3993.6,3993.5,5.89266475]
[1733542634291,0.17501,3993.6,3993.4,0.3985]
[1733542634495,0.17501,3993.6,3993.5,0.17501]
[1733542634699,0.17501,3993.6,3993.4,8.43142968]
[1733542634992,0.17501,3993.6,3993.4,0.57351]
[1733542635196,3.2078,3993.7,3993.4,0.3985]
[1733542635197,0.17501,3993.5,3993.4,0.3985]
[1733542635402,0.17501,3993.6,3993.4,8.43142968]
[1733542635594,0.17501,3993.6,3993.4,0.57351]
[1733542635895,3.2078,3993.7,3993.4,0.3985]
[1733542636091,3.3828,3993.7,3993.6,5.89486232]
[1733542636292,3.3828,3993.7,3993.3,7.85791968]
[1733542636293,5.16306399,3993.7,3993.5,3.93080903]
[1733542636598,3.3828,3993.7,3993.6,3.93065448]
[1733542636897,3.3828,3993.7,3993.5,3.93065448]
[1733542636898,0.175,3993.6,3993.5,3.93065448]
[1733542637394,0.175,3993.6,3993.5,3.93080796]
[1733542637591,0.17501,3993.5,3993.4,2.68380796]
[1733542637798,0.17501,3993.4,3993.3,2.68380796]
[1733542637996,5.16306399,3993.7,3992.9,5.89621195]
[1733542637997,2.93626612,3993.6,3992.9,5.89621195]
[1733542638193,2.93626612,3993.6,3993.2,3.2078]
[1733542638391,3.91502149,3995.0,3993.5,1.95526399]
[1733542638594,3.9636,3995.2,3994.3,3.2078]
[1733542638806,3.9636,3995.2,3994.8,5.89655402]
[1733542639097,0.17495,3994.9,3994.7,5.89655402]
[1733542639397,0.17494,3995.0,3994.8,10.29103679]
[1733542639599,3.9636,3995.2,3994.6,5.89655402]
[1733542639901,0.17495,3994.8,3994.7,4.42584159]
[1733542640396,0.17495,3994.8,3994.4,5.89655402]
[1733542640397,0.17496,3994.5,3994.4,5.89655402]
[1733542640600,0.4032,3994.7,3994.2,5.89655402]
[1733542640800,0.55277,3994.4,3994.3,4.42434317]
[1733542641497,0.17498,3994.2,3993.9,9.10435402]
[1733542641799,0.17498,3994.2,3994.0,4.42297462]
[1733542641988,0.3778,3994.4,3993.9,9.10435402]
[1733542642194,0.17498,3994.1,3994.0,4.42302492]
[1733542642595,0.17498,3994.2,3993.9,3.2078]
[1733542642796,0.3778,3994.4,3993.9,3.2078]
[1733542642998,0.17498,3994.2,3993.9,3.2078]
[1733542643197,0.3778,3994.4,3993.9,3.2078]
[1733542643604,0.17498,3994.2,3993.9,3.2078]
[1733542644895,0.17498,3994.2,3993.9,3.5851]
[1733542645100,0.3778,3994.4,3993.9,3.5851]
[1733542645403,0.17498,3994.2,3993.9,3.972]
[1733542646607,0.17498,3994.1,3993.9,3.972]
[1733542646800,0.17498,3994.1,3993.9,0.7642]
[1733542647003,0.3778,3994.4,3993.9,3.972]
[1733542647201,0.55277,3994.4,3994.0,0.17499]
[1733542647501,0.3778,3994.4,3993.9,3.972]
[1733542647705,0.17498,3994.2,3993.9,3.972]
[1733542647900,0.3778,3994.4,3993.9,3.972]
[1733542648099,0.56056,3994.6,3994.2,0.17498]
[1733542648698,0.3856,3994.6,3993.9,3.972]
[1733542649406,0.56056,3994.6,3994.2,0.17498]
[1733542650408,0.17496,3994.5,3994.2,0.17498]
[1733542650703,0.17498,3994.3,3993.9,3.38279]
[1733542650908,3.91502149,3996.2,3995.3,0.17493]
[1733542651206,0.4009,3996.7,3996.1,3.2078]
[1733542651408,0.57577,3996.7,3996.1,3.2078]
[1733542651710,0.17488,3996.6,3996.1,3.2078]
[1733542652003,0.4009,3996.7,3996.1,3.2078]
[1733542652710,0.17488,3996.4,3996.1,3.2078]
[1733542652903,0.4009,3996.7,3996.1,3.2078]
[1733542652904,0.17489,3996.3,3996.1,3.2078]
[1733542653211,0.17489,3996.2,3996.1,3.2078]
[1733542655007,0.4009,3996.7,3996.1,3.2078]
[1733542655008,0.17489,3996.3,3996.1,3.2078]
[1733542655213,0.4009,3996.7,3996.1,3.2078]
[1733542655901,0.17487,3996.6,3996.1,3.2078]
[1733542656105,0.17489,3996.2,3996.1,3.2078]
[1733542656506,0.17488,3996.4,3996.1,3.2078]
[1733542656714,0.4009,3996.7,3996.1,3.2078]
[1733542656715,0.17487,3996.6,3996.1,3.2078]
[1733542656906,0.4009,3996.7,3996.1,3.2078]
[1733542657108,0.17489,3996.3,3996.1,3.2078]
[1733542657316,0.17489,3996.2,3996.1,3.2078]
[1733542658616,0.17489,3996.3,3996.1,3.2078]
[1733542658819,0.4009,3996.7,3996.1,3.2078]
[1733542659510,0.17489,3996.2,3996.1,3.2078]
[1733542659707,0.4009,3996.7,3996.1,3.2078]
[1733542660119,0.17489,3996.2,3996.1,3.2078]
[1733542660319,0.17487,3996.6,3996.1,3.2078]
[1733542660620,0.17489,3996.2,3996.1,3.2078]
[1733542660913,0.4009,3996.7,3996.1,3.2078]
[1733542661217,0.17489,3996.3,3996.1,3.2078]
[1733542661816,0.4009,3996.7,3996.1,3.2078]
[1733542662014,0.17488,3996.4,3996.2,0.7979]
[1733542662217,0.4009,3996.7,3996.2,0.7979]
[1733542662420,0.17488,3996.5,3996.2,0.7979]
[1733542663015,0.3766,3996.9,3996.2,2.75316399]
[1733542663215,0.17488,3996.6,3996.4,3.2078]
[1733542663417,0.17487,3996.7,3996.4,3.2078]
[1733542663619,0.17486,3997.0,3996.6,1.95526399]
[1733542663825,0.17486,3997.0,3996.9,3.2078]
[1733542665219,0.17487,3996.6,3996.5,3.2078]
[1733542665913,0.17487,3996.6,3996.2,0.7979]
[1733542665914,0.17489,3996.3,3996.2,0.7979]
[1733542666114,0.17489,3996.2,3996.1,3.2078]
[1733542669112,0.17491,3995.7,3995.6,3.2078]
[1733542672629,3.6099,3996.1,3995.3,0.4152]
[1733542672927,0.17493,3995.4,3995.3,0.4152]
[1733542673423,0.17493,3995.2,3995.1,3.2078]
[1733542675438,0.4148,3995.5,3995.1,3.2078]
[1733542675624,0.17493,3995.3,3995.1,3.2078]
[1733542676130,0.17493,3995.4,3995.1,3.2078]
[1733542676630,0.4138,3996.0,3995.1,3.38274]
[1733542676631,0.17492,3995.6,3995.1,3.38274]
[1733542676833,0.17492,3995.6,3995.5,3.2078]
[1733542681145,3.6216,3996.0,3995.1,3.2078]
[1733542681340,0.17493,3995.2,3995.1,3.2078]
[1733542682542,0.67393,3995.2,3995.1,3.2078]
[1733542687047,0.17495,3994.8,3994.7,0.8074]
[1733542687246,0.17495,3994.8,3994.6,3.2078]
[1733542687247,0.17496,3994.7,3994.6,3.2078]
[1733542687449,0.17497,3994.3,3994.2,3.2078]
[1733542691557,0.67397,3994.3,3994.2,3.2078]
[1733542692160,0.499,3994.3,3993.5,3.2078]
[1733542692459,0.175,3993.6,3993.5,3.2078]
[1733542693861,0.3802,3993.9,3993.5,3.2078]
[1733542694053,3.7068,3994.4,3993.5,3.2078]
[1733542694257,0.17498,3994.2,3993.9,3.2078]
[1733542694560,0.17498,3994.2,3994.0,0.8115]
[1733542694762,0.499,3994.7,3994.0,0.8115]
[1733542695363,0.499,3994.7,3994.4,3.2078]
[1733542695559,0.17496,3994.5,3994.4,3.2078]
[1733542696257,0.67396,3994.5,3994.4,3.2078]
[1733542696651,0.499,3994.5,3994.4,3.2078]
[1733542697049,0.499,3994.5,3994.4,7.79395555]
[1733542697252,0.499,3994.5,3994.4,3.38277]
[1733542697454,0.686,3995.7,3994.4,3.2078]
[1733542697662,0.17493,3995.4,3995.3,3.2078]
[1733542698957,0.17492,3995.5,3995.3,3.2078]
[1733542699458,0.4108,3996.0,3995.3,3.2078]
[1733542699854,0.17493,3995.4,3995.3,3.2078]
[1733542700057,0.17492,3995.5,3995.3,3.2078]
[1733542700452,0.12512199,3996.1,3995.3,3.2078]
[1733542700653,0.17491,3995.8,3995.7,3.2078]
[1733542702758,0.17493,3995.4,3995.3,3.2078]
[1733542709069,0.30007391,3995.4,3995.3,3.2078]
[1733542709664,0.30992051,3995.4,3995.3,3.2078]
[1733542710564,0.54440962,3995.4,3994.9,0.4152]
[1733542710781,0.17494,3995.0,3994.9,0.4152]
[1733542716473,2.93571215,3995.1,3994.6,3.2078]
[1733542716674,0.17496,3994.7,3994.6,3.2078]
[1733542718567,0.17497,3994.4,3994.3,0.4028]
[1733542723876,0.17497,3994.4,3994.2,3.2078]
[1733542723877,0.17497,3994.3,3994.2,3.2078]
[1733542724082,0.58027,3994.3,3994.2,3.2078]
[1733542724781,0.175,3993.7,3993.6,9.06022368]
[1733542724972,0.175,3993.7,3993.6,3.2078]
[1733542726080,0.175,3993.7,3993.6,3.6022]
[1733542729178,0.175,3993.7,3993.6,0.3944]
[1733542729780,2.33896399,3994.1,3993.2,3.2078]
[1733542729978,0.17502,3993.3,3993.2,3.5958]
[1733542739687,2.13028399,3993.3,3993.2,3.2078]
[1733542740987,2.13028399,3993.3,3992.5,3.2078]
[1733542740988,0.17505,3992.6,3992.5,3.2078]
[1733542745984,1.1352,3993.2,3992.5,3.2078]
[1733542746386,0.17504,3992.8,3992.5,3.2078]
[1733542746985,0.7603,3993.2,3992.5,3.2078]
[1733542747189,0.17504,3992.9,3992.5,3.38285]
[1733542747595,0.17504,3992.8,3992.5,3.2078]
[1733542747790,0.7603,3993.2,3992.5,3.6093]
[1733542747987,0.17505,3992.7,3992.5,3.6093]
[1733542748390,0.17504,3992.9,3992.5,3.78435]
[1733542748794,0.17504,3992.9,3992.6,4.42142703]
[1733542748991,0.17504,3992.9,3992.7,4.42142703]
[1733542749193,0.17504,3992.9,3992.8,0.3924]
[1733542751603,0.7603,3993.2,3992.8,0.3924]
[1733542751795,0.17503,3992.9,3992.8,0.3924]
[1733542751996,0.7603,3993.2,3992.8,0.3924]
[1733542752193,0.17503,3992.9,3992.8,0.3924]
[1733542752589,0.7603,3993.2,3992.8,0.3924]
[1733542752794,0.17503,3992.9,3992.8,0.3924]
[1733542756503,1.07752041,3992.9,3992.8,0.3924]
[1733542759898,1.07752041,3992.9,3992.5,3.6093]
[1733542759899,0.90249041,3992.9,3992.5,3.2078]
[1733542760200,0.17505,3992.6,3992.5,3.6167]
[1733542760904,0.90249041,3992.9,3992.5,3.6167]
[1733542761107,0.17504,3992.7,3992.5,3.6167]
[1733542761400,0.17504,3992.8,3992.5,3.79175]
[1733542761600,0.90249041,3993.0,3992.7,3.92134669]
[1733542761903,0.17504,3992.8,3992.7,3.92134669]
[1733542763500,0.17504,3992.7,3992.6,5.87906564]
[1733542763704,0.17504,3992.7,3992.6,10.30373475]
[1733542764905,0.17504,3992.7,3992.6,10.70883475]
[1733542765511,0.17504,3992.7,3992.6,4.82976911]
[1733542767011,0.17504,3992.7,3992.6,5.00481911]
[1733542767406,0.17504,3992.7,3992.6,12.66852329]
[1733542767911,0.17504,3992.7,3992.6,21.70156199]
[1733542768106,0.17504,3992.7,3992.6,13.86280781]
[1733542768505,0.17504,3992.7,3992.6,13.68775781]
[1733542769714,0.17504,3992.7,3992.6,4.82976911]
[1733542770015,0.17504,3992.7,3992.6,10.72724556]
[1733542770415,0.17504,3992.7,3992.6,10.73552436]
[1733542770807,0.17504,3992.7,3992.6,10.7370234]
[1733542771615,0.17504,3992.7,3992.6,4.83804791]
[1733542772513,0.17504,3992.7,3992.6,5.01309791]
[1733542773623,0.17504,3992.7,3992.6,4.83804791]
[1733542773818,0.90249041,3993.0,3992.6,4.83804791]
[1733542774118,0.90249041,3993.0,3992.7,4.43294791]
[1733542774119,0.17504,3992.8,3992.7,4.43294791]
[1733542774320,0.17504,3992.8,3992.7,7.64074791]
[1733542775217,0.17504,3992.8,3992.7,4.43294791]
[1733542775420,0.17504,3992.8,3992.7,7.64590994]
[1733542776318,0.90249041,3993.0,3992.7,7.64590994]
[1733542776517,0.90249041,3993.0,3992.8,4.43810994]
[1733542776518,0.17504,3992.9,3992.8,4.43810994]
[1733542776717,0.17504,3992.9,3992.8,13.31541149]
[1733542777021,0.17504,3992.9,3992.8,23.15706983]
[1733542777217,0.17504,3992.9,3992.8,9.84165834]
[1733542777515,0.17504,3992.9,3992.8,13.31629543]
[1733542777920,0.17504,3992.9,3992.8,23.15918314]
[1733542778818,0.17504,3992.9,3992.8,23.16058854]
[1733542779516,0.17504,3992.9,3992.8,13.31629543]
[1733542780311,0.17504,3992.9,3992.8,13.32246013]
[1733542780511,0.17504,3992.9,3992.8,23.16897109]
[1733542780925,0.17504,3992.9,3992.8,13.32246013]
[1733542784121,0.17504,3992.9,3992.8,23.16897109]
[1733542784816,0.17504,3992.9,3992.8,13.32246013]
[1733542785216,0.90249041,3993.0,3992.8,13.32618555]
[1733542785416,1.07752041,3993.0,3992.9,13.32618555]
[1733542786022,0.7603,3993.2,3992.9,13.32618555]
[1733542786023,0.7603,3993.2,3993.0,0.17503]
[1733542786225,0.93532,3993.2,3993.1,16.53398555]
[1733542786428,1.83781041,3993.2,3993.1,16.53398555]
[1733542788427,1.66279041,3993.2,3993.1,16.53398555]
[1733542789817,1.66279041,3993.2,3993.1,12.0919237]
[1733542790029,1.83781041,3993.2,3993.1,12.0919237]
[1733542790224,1.83781041,3993.2,3993.1,21.93843466]
[1733542790524,0.3788,3993.2,3993.1,12.2669537]
[1733542790720,1.07750041,3993.5,3993.2,0.17502]
[1733542790923,0.17501,3993.4,3993.3,9.2613237]
[1733542791226,0.17501,3993.4,3993.3,19.10561693]
[1733542791726,0.17501,3993.4,3993.3,9.2613237]
[1733542791919,0.17501,3993.4,3993.3,4.31409852]
[1733542792121,0.17501,3993.4,3993.3,0.3772]
[1733542793827,0.17501,3993.4,3993.3,4.31409852]
[1733542794022,0.17501,3993.4,3993.3,4.48911852]
[1733542794023,2.94782716,3993.4,3993.3,4.48911852]
[1733542794223,2.94782716,3993.5,3993.4,0.17501]
[1733542794429,3.12283716,3993.6,3993.5,0.17501]
[1733542794628,0.4104,3993.8,3993.5,3.38281]
[1733542794629,3.12282716,3993.7,3993.5,3.38281]
[1733542794927,3.12282716,3993.7,3993.6,3.93505173]
[1733542795236,0.175,3993.6,3993.5,7.31786173]
[1733542795531,0.175,3993.6,3993.5,3.38281]
[1733542795921,2.94782716,3993.8,3993.5,3.2078]
[1733542796136,0.175,3993.8,3993.7,0.175]
[1733542796522,3.24800494,3994.0,3993.9,0.17499]
[1733542796727,3.24800494,3994.0,3993.9,3.38279]
[1733542796931,3.07301494,3994.0,3993.9,3.38279]
[1733542797131,0.12518778,3994.0,3993.9,3.38279]
[1733542797826,0.30017778,3994.0,3993.9,3.38279]
[1733542798131,2.94782716,3994.3,3993.9,3.2078]
[1733542798335,0.17497,3994.5,3994.4,0.17497]
[1733542798531,0.17496,3994.6,3994.5,0.17496]
[1733542799034,0.17496,3994.6,3994.5,6.08030778]
[1733542799227,0.90249041,3994.8,3994.4,9.11314778]
[1733542799429,0.3973,3994.9,3994.6,3.92707675]
[1733542799430,0.17496,3994.7,3994.6,3.92707675]
[1733542800131,1.29979041,3994.9,3994.4,9.11314778]
[1733542800342,0.17495,3994.8,3994.5,0.17496]
[1733542800534,1.47474041,3994.9,3994.8,3.2078]
[1733542801426,0.57225,3994.9,3994.8,3.2078]
[1733542804432,0.3973,3994.9,3994.2,3.2078]
[1733542804631,0.17497,3994.4,3994.2,3.2078]
[1733542804835,0.3903,3994.3,3994.2,3.2078]
[1733542805134,0.3903,3994.3,3994.2,7.13437108]
[1733542805545,0.3903,3994.3,3994.2,3.2078]
[1733542805833,0.3903,3994.3,3994.2,7.13437108]
[1733542806539,0.3903,3994.3,3994.2,3.2078]
[1733542808334,0.56527,3994.3,3994.2,3.2078]
[1733542808536,0.95097,3994.3,3994.2,3.2078]
[1733542808843,0.17499,3993.9,3993.8,3.2078]
[1733542809038,1.07748041,3993.9,3993.8,3.2078]
[1733542809345,0.90249041,3993.9,3993.4,3.2078]
[1733542809540,1.07750041,3993.5,3993.4,3.2078]
[1733542813142,0.90249041,3993.5,3993.4,3.2078]
[1733542813341,1.07750041,3993.5,3993.4,3.2078]
[1733542815642,0.17501,3993.5,3993.4,3.2078]
[1733542815838,0.55391,3993.5,3993.4,3.2078]
[1733542816041,0.93381,3993.5,3993.4,3.2078]
[1733542828951,3.87900823,3993.5,3993.4,3.2078]
[1733542829149,0.93381,3993.5,3993.4,3.2078]
[1733542829351,3.87577592,3993.5,3993.4,3.2078]
[1733542830351,3.11697592,3993.5,3993.4,3.2078]
[1733542830956,4.90866372,3994.0,3993.4,3.2078]
[1733542830957,2.94196592,3993.7,3993.4,3.2078]
[1733542831253,0.17501,3993.6,3993.5,0.7776]
[1733542831555,4.82942139,3994.0,3993.5,0.7776]
[1733542831556,2.94196592,3993.9,3993.5,0.7776]
[1733542831857,3.11695592,3993.9,3993.8,3.2078]
[1733542832757,0.17499,3993.9,3993.8,3.2078]
[1733542834266,2.94196592,3994.1,3993.8,3.2078]
[1733542834459,0.17499,3994.1,3993.9,0.3932]
[1733542834665,0.17498,3994.2,3993.9,0.3932]
[1733542834964,0.17498,3994.1,3994.0,0.4009]
[1733542838260,0.17498,3994.1,3994.0,4.32645616]
[1733542839869,0.17498,3994.2,3994.0,4.32617013]
[1733542840669,0.17498,3994.2,3994.1,3.92527013]
[1733542843771,0.17498,3994.1,3994.0,6.29075662]
[1733542844073,0.17498,3994.1,3994.0,0.4009]
[1733542846765,0.17498,3994.1,3994.0,0.57589]
[1733542847875,0.17498,3994.1,3994.0,0.4009]
[1733542848878,0.17498,3994.1,3994.0,0.57589]
[1733542849471,0.17498,3994.1,3994.0,0.4009]
[1733542849783,0.17498,3994.1,3994.0,0.57589]
[1733542850876,0.17498,3994.1,3994.0,0.4009]
[1733542851084,0.17498,3994.1,3994.0,0.57589]
[1733542851476,0.17498,3994.2,3994.1,0.17498]
[1733542851876,0.17498,3994.2,3994.0,0.4009]
[1733542851877,0.17498,3994.1,3994.0,0.57588]
[1733542852087,0.17498,3994.1,3994.0,1.25188]
[1733542852681,0.17498,3994.1,3994.0,7.13644717]
[1733542853483,0.17498,3994.2,3994.1,0.17498]
[1733542854279,0.90249041,3994.6,3994.0,6.96146717]
[1733542854480,0.90249041,3994.6,3994.5,3.2078]
[1733542854786,1.07745041,3994.6,3994.5,3.2078]
[1733542855486,0.90249041,3994.6,3994.1,3.2078]
[1733542855678,1.07747041,3994.2,3994.1,3.2078]
[1733542859687,1.86637041,3994.2,3994.1,3.2078]
[1733542861385,0.96388,3994.2,3994.1,3.2078]
[1733542861885,0.17499,3994.1,3994.0,3.2078]
[1733542869890,0.17499,3994.1,3994.0,7.13316515]
[1733542870093,0.17499,3994.1,3994.0,3.2078]
[1733542873800,0.17499,3994.1,3994.0,9.09584773]
[1733542876598,0.17499,3994.1,3994.0,3.2078]
[1733542879005,2.9427593,3994.1,3993.6,11.05853031]
[1733542879201,3.12362768,3993.9,3993.8,5.90330568]
[1733542879502,4.71257907,3994.2,3993.6,9.11110568]
[1733542879703,0.175,3993.7,3993.6,9.11110568]
[1733542879897,0.175,3993.7,3993.6,3.2078]
[1733542880097,0.5802,3993.7,3993.6,7.14310198]
[1733542880297,1.48269041,3993.7,3993.6,7.14310198]
[1733542880492,1.48269041,3993.7,3993.6,3.2078]
[1733542881709,4.42813714,3993.7,3993.6,3.2078]
[1733542882201,5.40636948,3993.7,3993.6,3.2078]
[1733542882506,1.48269041,3993.7,3993.6,3.2078]
[1733542884106,4.42718082,3993.7,3993.6,3.2078]
[1733542884903,0.17502,3993.3,3993.2,3.2078]
[1733542889501,0.17502,3993.3,3993.2,7.13615551]
[1733542890006,0.17502,3993.3,3993.2,3.2078]
[1733542890207,0.17502,3993.3,3993.2,7.13618103]
[1733542890402,0.17502,3993.3,3993.2,7.13584038]
[1733542890701,0.8466,3993.8,3993.2,7.13584038]
[1733542890702,2.94449041,3994.2,3993.2,10.01359609]
[1733542890902,0.17499,3993.9,3993.8,3.2078]
[1733542891098,0.17499,3993.9,3993.8,7.13558176]
[1733542891303,0.17499,3993.9,3993.8,3.2078]
[1733542893508,0.17499,3993.9,3993.8,9.09947264]
[1733542893703,0.17499,3993.9,3993.8,3.2078]
[1733542894100,0.17499,3993.9,3993.8,9.09947264]
[1733542894698,0.17499,3993.9,3993.8,3.2078]
[1733542895005,0.17499,3993.9,3993.8,7.13609313]
[1733542895403,0.17499,3993.9,3993.8,3.2078]
[1733542896199,0.17499,3993.9,3993.8,9.09947264]
[1733542896405,0.17499,3993.9,3993.8,3.2078]
[1733542900904,4.09866907,3993.9,3993.8,3.2078]
[1733542902205,0.17499,3993.9,3993.8,3.2078]
[1733542904014,1.07748041,3993.9,3993.8,3.2078]
[1733542910424,0.90249041,3993.9,3993.7,7.13638742]
[1733542910717,0.17499,3993.9,3993.7,3.2078]
[1733542911021,0.17499,3994.0,3993.8,9.08539648]
[1733542911220,0.17499,3994.0,3993.9,8.26493141]
[1733542911514,0.17499,3994.0,3993.9,0.7941]
[1733542912622,0.17499,3994.0,3993.9,0.4039]
[1733542912815,3.49971341,3994.0,3993.9,0.4039]
[1733542913120,0.55579,3994.0,3993.9,0.4039]
[1733542915715,3.49971341,3994.0,3993.9,0.4039]
[1733542917225,0.55579,3994.0,3993.9,0.4039]
[1733542917426,3.49971341,3994.0,3993.9,0.4039]
[1733542917925,0.55579,3994.0,3993.9,0.4039]
[1733542919427,0.55579,3994.0,3993.9,8.26493141]
[1733542919728,0.55579,3994.0,3993.9,0.4039]
[1733542921224,0.55579,3994.0,3993.9,8.26493141]
[1733542921528,0.55579,3994.0,3993.9,0.4039]
[1733542922427,0.55579,3994.0,3993.9,6.30080405]
[1733542922631,0.55579,3994.0,3993.9,0.4039]
[1733542923024,0.55579,3994.0,3993.9,6.30084394]
[1733542925425,0.55579,3994.0,3993.9,5.89694394]
[1733542926324,0.55579,3994.0,3993.7,11.06883141]
[1733542926325,0.175,3993.8,3993.7,3.2078]
[1733542926632,1.07749041,3993.8,3993.7,3.2078]
[1733542928940,1.07749041,3993.8,3993.6,0.3876]
[1733542928941,0.175,3993.7,3993.6,0.3876]
[1733542929129,0.175,3993.8,3993.6,3.5954]
[1733542929328,0.17499,3993.9,3993.6,3.5954]
[1733542929526,0.17499,3993.9,3993.7,0.4058]
[1733542930135,0.3808,3994.0,3993.7,0.4058]
[1733542930335,0.175,3993.8,3993.7,0.4058]
[1733542930535,0.175,3993.7,3993.6,3.2078]
[1733542930734,0.5694,3993.7,3993.6,3.2078]
[1733542936255,1.47189041,3993.7,3993.6,3.2078]
[1733542936563,1.47189041,3993.7,3993.6,3.08261222]
[1733542937157,1.29689041,3993.7,3992.8,3.2078]
[1733542937357,1.07752041,3992.9,3992.8,3.2078]
[1733542938668,4.02132897,3992.9,3992.8,3.2078]
[1733542939167,1.07752041,3992.9,3992.8,3.2078]
[1733542940266,4.01957768,3992.9,3992.8,3.2078]
[1733542940474,4.01942643,3992.9,3992.8,3.2078]
[1733542940769,1.07752041,3992.9,3992.8,3.2078]
[1733542940964,4.01915996,3992.9,3992.8,3.2078]
[1733542941772,3.84412996,3992.9,3992.4,0.802]
[1733542941973,3.11666955,3992.9,3992.8,3.2078]
[1733542942269,0.17503,3992.9,3992.8,3.2078]
[1733542942461,0.17503,3992.9,3992.8,7.14070809]
[1733542943264,0.17503,3992.9,3992.8,3.2078]
[1733542945966,0.3888,3993.0,3992.6,3.93290809]
[1733542946164,1.07753041,3992.7,3992.6,3.93290809]
[1733542946365,1.07753041,3992.7,3992.6,7.14070809]
[1733542947566,1.07753041,3992.7,3992.6,3.93290809]
[1733542947768,1.07753041,3992.7,3992.6,7.14070809]
[1733542948880,1.07753041,3992.7,3992.6,3.2078]
[1733542957771,1.98002082,3992.7,3992.6,3.2078]
[1733542958678,0.17505,3992.5,3992.4,0.802]
[1733542958984,1.07754041,3992.5,3992.4,0.802]
[1733542960380,1.98003082,3992.5,3992.4,0.802]
[1733542964585,1.98003082,3992.5,3991.8,3.93290809]
[1733542964586,1.80498082,3992.5,3991.8,3.93290809]
[1733542964782,0.90249041,3991.9,3991.7,0.4039]
[1733542964985,0.98498,3991.8,3991.7,0.4039]
[1733542968392,1.21968601,3991.8,3991.7,0.4039]
[1733542968807,0.17509,3991.7,3991.6,0.3936]
[1733542972101,1.2154,3991.8,3991.3,0.3873]
[1733542972306,1.2154,3991.8,3991.4,0.3784]
[1733542972509,0.1751,3991.5,3991.4,0.3784]
[1733542973807,3.2078,3992.3,3991.4,0.3784]
[1733542974006,0.90249041,3991.6,3991.5,0.3744]
[1733542974203,0.17506,3992.3,3991.8,0.17508]
[1733542974510,0.90249041,3991.9,3991.8,3.2078]
[1733542975312,1.07757041,3991.9,3991.5,3.93290809]
[1733542975506,1.07757041,3991.9,3991.4,0.3784]
[1733542975507,0.17508,3991.9,3991.8,3.2078]
[1733542975707,0.398,3992.3,3991.6,0.3896]
[1733542975909,0.17509,3991.7,3991.6,0.3896]
[1733542976612,0.90249041,3991.7,3991.5,3.93290809]
[1733542976913,0.90249041,3991.7,3991.4,3.5862]
[1733542976914,0.1751,3991.5,3991.4,7.50777673]
[1733542977410,0.1751,3991.5,3991.4,7.12937673]
[1733542977602,0.1751,3991.5,3991.4,3.2078]
[1733542984218,1.07759041,3991.5,3991.4,3.2078]
[1733542986513,0.17511,3991.1,3991.0,3.605]
[1733542986712,1.07760041,3991.1,3991.0,3.605]
[1733542990317,1.48670041,3991.1,3991.0,3.605]
[1733542991220,1.48670041,3991.1,3991.0,3.2078]
[1733542991426,1.71609041,3991.1,3990.6,7.13109188]
[1733542991629,1.07762041,3990.7,3990.6,7.13109188]
[1733542992325,1.07762041,3990.7,3990.6,3.2078]
[1733542995127,1.98011082,3990.7,3990.6,3.2078]
[1733542995430,1.07762041,3990.7,3990.6,3.2078]
[1733542996227,1.45262041,3990.7,3990.6,3.2078]
[1733542996823,2.35511082,3990.7,3990.6,3.2078]
[1733542998024,0.17515,3990.3,3990.2,3.6218]
[1733542998230,1.98013082,3990.3,3990.2,3.6218]
[1733543000724,3.2078,3991.8,3990.2,3.6218]
[1733543000924,0.90249041,3991.2,3990.9,3.2078]
[1733543001125,0.17511,3991.1,3991.0,0.397]
[1733543001326,0.17511,3991.1,3991.0,0.7812]
[1733543002626,2.13289434,3991.1,3991.0,0.7812]
[1733543003221,0.17511,3991.1,3991.0,0.7812]
[1733543003420,2.13289434,3991.1,3991.0,0.7812]
[1733543009632,2.13289434,3991.1,3991.0,4.70943101]
[1733543010328,2.13289434,3991.1,3991.0,0.7812]
[1733543011132,1.95778434,3991.1,3991.0,0.7812]
[1733543011327,1.95778434,3991.5,3991.2,0.17511]
[1733543011528,1.95778434,3991.5,3991.3,0.4107]
[1733543011729,2.13286434,3991.9,3991.5,0.1751]
[1733543012038,2.13286434,3991.9,3991.8,9.10762008]
[1733543012336,2.13286434,3991.9,3991.8,9.1063431]
[1733543012723,2.13286434,3991.9,3991.8,3.2078]
[1733543012935,2.13286434,3991.9,3991.8,9.10640321]
[1733543013136,2.13286434,3991.9,3991.8,3.2078]
[1733543013433,2.13286434,3991.9,3991.8,9.10579878]
[1733543013737,2.13286434,3991.9,3991.8,3.2078]
[1733543014335,0.17508,3991.9,3991.8,9.10579878]
[1733543014535,2.13286434,3991.9,3991.8,9.10579878]
[1733543014941,2.13286434,3991.9,3991.8,3.2078]
[1733543016132,2.13286434,3991.9,3991.8,7.13909228]
[1733543017630,2.13286434,3991.9,3991.8,3.2078]
[1733543017832,2.13286434,3991.9,3991.8,7.13858201]
[1733543018140,0.17507,3992.1,3991.8,7.13858201]
[1733543018438,1.95778434,3992.1,3991.9,5.89799878]
[1733543018735,2.13285434,3992.1,3991.9,5.89799878]
[1733543019238,0.17507,3992.0,3991.8,9.10579878]
[1733543019435,0.17508,3991.9,3991.8,9.10579878]
[1733543020526,0.17508,3991.9,3991.8,9.10193432]
[1733543022533,1.07810126,3991.9,3991.8,9.10193432]
[1733543023439,1.07810126,3991.9,3991.8,7.13674562]
[1733543024041,1.07810126,3991.9,3991.8,3.2078]
[1733543024639,4.99626003,3991.9,3991.8,3.2078]
[1733543025534,5.40226003,3991.9,3991.8,3.2078]
[1733543025737,1.48410126,3991.9,3991.8,3.2078]
[1733543026133,0.1751,3991.3,3991.2,3.604]
[1733543026448,4.01802971,3991.3,3991.2,3.604]
[1733543026636,5.07227192,3991.3,3991.2,3.604]
[1733543027946,3.11500845,3991.3,3991.2,3.604]
[1733543028243,2.13236347,3991.3,3991.2,3.604]